bitfinex/quotes_SOLUSD_20250815
["timestamp","ask_amount","ask_price","bid_price","bid_amount"]
[1755263357143,16.52327915,193.56,193.52,0.03]
[1755263357308,15.81327915,193.56,193.52,0.03]
[1755263357708,15.81327915,193.54,193.52,0.03]
[1755263358038,0.71,193.55,193.52,0.03]
[1755263358039,15.81327915,193.53,193.52,0.03]
[1755263358330,0.71,193.54,193.52,0.03]
[1755263358511,16.52327915,193.54,193.52,0.03]
[1755263358708,26.0,193.57,193.52,0.03]
[1755263358927,15.81327915,193.55,193.52,0.03]
[1755263359135,15.81327915,193.54,193.52,0.03]
[1755263359332,16.52327915,193.55,193.52,0.03]
[1755263359736,16.52327915,193.55,193.49,21.66130311]
[1755263359737,0.85284,193.52,193.49,21.66130311]
[1755263359918,0.85284,193.52,193.49,5.84802396]
[1755263360115,0.85284,193.52,193.49,21.66130311]
[1755263360330,0.85284,193.52,193.49,5.84802396]
[1755263360753,0.85284,193.52,193.5,16.49327915]
[1755263360929,0.85284,193.52,193.51,16.49327915]
[1755263361528,0.85284,193.52,193.51,21.66097074]
[1755263362040,0.85284,193.52,193.49,20.98126247]
[1755263362242,0.85284,193.52,193.49,21.66126247]
[1755263362554,0.85284,193.52,193.51,15.81327915]
[1755263363050,0.85284,193.52,193.49,5.16798332]
[1755263363290,0.85284,193.52,193.49,21.66126247]
[1755263363454,0.85284,193.52,193.49,5.84798332]
[1755263363752,0.85284,193.52,193.5,5.16788407]
[1755263363934,0.85284,193.52,193.49,20.9814617]
[1755263364951,0.85284,193.52,193.48,0.03]
[1755263365350,0.85284,193.52,193.48,5.1984796]
[1755263365529,1.56284,193.52,193.48,5.1984796]
[1755263365853,1.56284,193.52,193.48,0.03]
[1755263366224,132.75284,193.52,193.48,15.84327915]
[1755263366429,132.75284,193.52,193.48,0.03]
[1755263366624,0.71,193.51,193.48,0.03]
[1755263366934,16.52327915,193.51,193.48,0.03]
[1755263367146,16.52327915,193.5,193.48,0.03]
[1755263367857,148.56611915,193.52,193.48,0.03]
[1755263368056,15.81327915,193.5,193.48,0.03]
[1755263368268,0.71,193.49,193.48,0.03]
[1755263368643,148.56611915,193.52,193.48,0.03]
[1755263368834,153.73373313,193.52,193.48,0.03]
[1755263369168,16.52327915,193.51,193.48,0.03]
[1755263369465,15.81327915,193.5,193.48,0.03]
[1755263369667,16.52327915,193.5,193.48,0.03]
[1755263369834,0.71,193.5,193.48,0.03]
[1755263370649,147.71327915,193.52,193.48,0.03]
[1755263370863,131.9,193.52,193.48,0.03]
[1755263371064,0.06,193.55,193.51,15.81327915]
[1755263371258,0.06,193.55,193.52,15.81327915]
[1755263371767,0.06,193.55,193.52,16.49327915]
[1755263371937,0.06,193.55,193.53,5.16715754]
[1755263373970,0.71,193.54,193.5,5.16795865]
[1755263374175,16.52327915,193.53,193.5,5.16795865]
[1755263374350,0.71,193.53,193.5,5.16795865]
[1755263374548,0.06,193.55,193.52,15.81327915]
[1755263375069,0.06,193.55,193.53,5.16715754]
[1755263376381,0.06,193.55,193.54,16.49327915]
[1755263376683,1e-08,193.55,193.54,16.49327915]
[1755263377041,1e-08,193.55,193.54,47.66016971]
[1755263377654,1e-08,193.55,193.54,5.16689056]
[1755263378542,1e-08,193.55,193.54,4.31405056]
[1755263378944,1e-08,193.55,193.52,5.16742455]
[1755263379144,1e-08,193.55,193.53,15.81327915]
[1755263379474,1e-08,193.55,193.54,15.81327915]
[1755263380378,1e-08,193.55,193.52,5.16742455]
[1755263380551,1e-08,193.55,193.53,15.81327915]
[1755263380879,1e-08,193.55,193.54,5.16689056]
[1755263381451,1e-08,193.55,193.54,20.98016971]
[1755263382069,1e-08,193.55,193.54,21.66016971]
[1755263382470,1e-08,193.55,193.54,20.98016971]
[1755263382703,1e-08,193.55,193.52,5.16732988]
[1755263382910,16.52327915,193.54,193.5,26.0]
[1755263383099,15.81327915,193.54,193.5,26.0]
[1755263383278,0.71,193.53,193.5,31.16790239]
[1755263383609,1e-08,193.55,193.52,15.81327915]
[1755263383903,1e-08,193.55,193.54,15.81327915]
[1755263384086,1e-08,193.55,193.54,20.98016971]
[1755263384406,0.71000001,193.55,193.51,5.16769159]
[1755263385677,1e-08,193.55,193.52,20.98048633]
[1755263385879,1e-08,193.55,193.54,15.81327915]
[1755263386482,1e-08,193.55,193.52,5.16720718]
[1755263386687,0.66,193.54,193.5,46.98098224]
[1755263387005,0.66,193.53,193.5,31.16770309]
[1755263387210,1e-08,193.55,193.5,31.16770309]
[1755263387588,0.66,193.54,193.5,31.16770309]
[1755263387786,0.66,193.54,193.48,5.85825359]
[1755263388010,16.47327915,193.54,193.48,5.19825359]
[1755263389000,21.64017336,193.54,193.48,5.19825359]
[1755263389498,16.47327915,193.53,193.48,5.19825359]
[1755263389890,0.66,193.52,193.48,5.19825359]
[1755263390988,0.66,193.51,193.48,0.03]
[1755263391317,16.47327915,193.51,193.48,0.03]
[1755263391483,15.81327915,193.49,193.48,0.03]
[1755263391682,19.28765372,193.49,193.48,0.03]
[1755263392003,15.10621557,193.48,193.46,0.03]
[1755263392308,56.92765372,193.47,193.46,0.03]
[1755263392499,19.94765372,193.47,193.46,0.03]
[1755263392706,3.47437457,193.47,193.46,0.03]
[1755263393018,37.64,193.48,193.46,0.03]
[1755263393383,0.66,193.47,193.46,0.03]
[1755263393892,38.3,193.48,193.46,0.03]
[1755263394705,37.64,193.48,193.46,0.03]
[1755263395821,0.66,193.5,193.46,0.03]
[1755263396020,16.47327915,193.5,193.46,0.03]
[1755263396219,0.66,193.49,193.46,0.03]
[1755263396712,0.66,193.48,193.46,0.03]
[1755263397020,0.66,193.49,193.46,0.03]
[1755263397217,131.9,193.48,193.46,0.03]
[1755263399001,131.9,193.48,193.46,0.69]
[1755263399225,131.9,193.48,193.46,0.03]
[1755263400019,132.56,193.48,193.46,0.03]
[1755263400222,0.66,193.47,193.46,0.03]
[1755263400385,16.47327915,193.47,193.46,0.03]
[1755263400851,13.9572526,193.47,193.46,0.03]
[1755263401028,29.06346817,193.47,193.46,0.03]
[1755263401229,29.06346817,193.47,193.45,0.03]
[1755263401230,24.93367744,193.46,193.45,0.03]
[1755263401537,24.93367744,193.46,193.44,0.03]
[1755263401538,147.00621557,193.45,193.44,0.03]
[1755263401699,66.70346817,193.45,193.44,0.03]
[1755263401886,41.10621557,193.41,193.29,10.48746187]
[1755263402090,97.21383164,193.41,193.3,5.17330574]
[1755263402318,97.21383164,193.41,193.29,0.66]
[1755263402319,97.87383164,193.41,193.29,0.66]
[1755263402495,97.87383164,193.41,193.29,5.83350455]
[1755263402693,103.97329314,193.41,193.29,5.83350455]
[1755263403124,106.67045249,193.41,193.29,5.83350455]
[1755263403720,106.67045249,193.41,193.29,21.76042792]
[1755263404404,106.67045249,193.41,193.24,2.69951609]
[1755263404405,15.10621557,193.36,193.24,2.69951609]
[1755263404635,41.10621557,193.32,193.21,30.65781145]
[1755263404942,41.75918933,193.35,193.25,26.0]
[1755263404943,15.10621557,193.35,193.25,26.0]
[1755263405160,15.10621557,193.35,193.26,0.66]
[1755263405305,15.92692337,193.31,193.26,0.66]
[1755263405659,15.92692337,193.31,193.2,15.10621557]
[1755263405660,15.92692337,193.27,193.2,5.17598343]
[1755263405810,38.34,193.26,193.2,21.1029068]
[1755263406012,53.60692337,193.26,193.21,0.66]
[1755263406205,37.68,193.26,193.22,0.66]
[1755263406439,15.92692337,193.25,193.2,0.66]
[1755263406740,0.66,193.29,193.22,15.92692337]
[1755263406902,0.66,193.29,193.21,0.66]
[1755263406903,37.72,193.31,193.28,15.92692337]
[1755263407106,37.72,193.31,193.26,15.92692337]
[1755263407328,15.92692337,193.3,193.24,16.58692337]
[1755263407529,15.92692337,193.25,193.21,0.66]
[1755263407717,37.74,193.25,193.22,15.92692337]
[1755263407912,37.74,193.25,193.24,15.92692337]
[1755263408136,37.74,193.25,193.23,15.92692337]
[1755263408317,15.92692337,193.27,193.21,0.66]
[1755263408517,37.76,193.28,193.25,15.92692337]
[1755263408834,4.06657627,193.39,193.22,5.17544767]
[1755263408835,20.27684638,193.4,193.27,15.92692337]
[1755263409040,15.92692337,193.38,193.28,0.66]
[1755263409206,37.8,193.37,193.33,15.92692337]
[1755263409407,16.58692337,193.43,193.36,15.92692337]
[1755263409606,16.58692337,193.43,193.31,26.0]
[1755263409607,16.58692337,193.47,193.4,15.92692337]
[1755263409806,0.66,193.51,193.45,15.92692337]
[1755263410048,0.66,193.51,193.34,52.92621557]
[1755263410049,37.86,193.5,193.43,0.66]
[1755263410210,37.86,193.5,193.44,15.92692337]
[1755263410410,16.58692337,193.49,193.41,5.17036347]
[1755263410630,15.92692337,193.46,193.41,5.17036347]
[1755263410904,37.86,193.46,193.41,21.09728684]
[1755263411119,30.0,193.45,193.43,15.92692337]
[1755263411336,30.0,193.45,193.41,5.17036347]
[1755263411337,30.0,193.45,193.41,21.09728684]
[1755263411641,30.0,193.45,193.4,5.1706284]
[1755263411829,30.66,193.45,193.4,5.1706284]
[1755263412025,15.92692337,193.42,193.36,21.09862382]
[1755263412235,15.92692337,193.41,193.36,5.17170045]
[1755263412550,15.92692337,193.4,193.36,5.17170045]
[1755263412763,15.92692337,193.38,193.32,15.95692337]
[1755263412924,53.80692337,193.38,193.32,15.95692337]
[1755263413125,37.88,193.38,193.33,15.92692337]
[1755263413385,37.88,193.39,193.35,15.92692337]
[1755263413555,37.88,193.39,193.35,16.58692337]
[1755263414031,54.46692337,193.39,193.32,21.7896939]
[1755263414230,15.92692337,193.38,193.36,0.03]
[1755263414630,16.58692337,193.38,193.36,0.03]
[1755263415522,185.70692337,193.39,193.36,0.03]
[1755263416035,25.84255574,193.48,193.36,0.03]
[1755263416036,15.81621557,193.47,193.38,15.92692337]
[1755263416344,37.9,193.46,193.41,15.92692337]
[1755263416544,30.0,193.42,193.41,21.09728684]
[1755263416925,30.0,193.42,193.41,5.17036347]
[1755263417122,37.9,193.46,193.41,21.09728684]
[1755263417348,37.9,193.46,193.43,15.92692337]
[1755263417630,30.0,193.44,193.43,15.92692337]
[1755263417846,30.65,193.44,193.39,5.17064052]
[1755263418056,30.0,193.44,193.4,15.92692337]
[1755263418256,30.0,193.44,193.43,15.92692337]
[1755263418553,30.0,193.44,193.43,21.80675224]
[1755263418759,30.0,193.44,193.43,47.80675224]
[1755263419061,0.06,193.47,193.43,60.73132443]
[1755263419245,0.06,193.47,193.46,15.92692337]
[1755263419430,0.06,193.49,193.48,15.92692337]
[1755263419835,0.06,193.49,193.48,16.63692337]
[1755263420575,0.06,193.49,193.48,21.80541623]
[1755263421351,0.71,193.49,193.41,0.71]
[1755263421551,0.71,193.49,193.42,5.17009616]
[1755263421552,16.63692337,193.49,193.42,5.17009616]
[1755263421756,15.92692337,193.48,193.41,31.17032171]
[1755263421933,0.65,193.48,193.41,5.17032171]
[1755263422133,15.92692337,193.46,193.39,21.09782155]
[1755263422543,15.92692337,193.44,193.38,21.09790855]
[1755263422752,0.65,193.45,193.39,15.92692337]
[1755263422940,38.55,193.45,193.39,15.92692337]
[1755263423459,59.64627913,193.45,193.39,15.92692337]
[1755263423658,59.64627913,193.45,193.38,5.17098518]
[1755263423849,43.71935576,193.45,193.39,15.92692337]
[1755263424051,38.55,193.45,193.39,15.92692337]
[1755263424246,15.92692337,193.42,193.37,26.0]
[1755263424452,15.92692337,193.42,193.36,0.03]
[1755263424759,0.65,193.42,193.36,15.95692337]
[1755263425264,16.57692337,193.42,193.36,0.03]
[1755263425442,15.92692337,193.41,193.36,0.03]
[1755263425637,0.65,193.42,193.36,0.03]
[1755263425838,15.92692337,193.41,193.36,0.03]
[1755263426140,0.65,193.41,193.36,15.95692337]
[1755263426336,0.65,193.41,193.36,0.03]
[1755263426543,0.65,193.4,193.36,0.03]
[1755263426844,5.82067025,193.4,193.36,0.03]
[1755263427048,16.57692337,193.39,193.36,0.03]
[1755263427251,0.65,193.39,193.36,0.03]
[1755263427572,37.86,193.4,193.36,0.03]
[1755263427756,0.65,193.39,193.36,0.03]
[1755263427957,16.57692337,193.39,193.36,0.03]
[1755263428150,37.86,193.4,193.36,0.03]
[1755263428351,0.65,193.38,193.36,0.03]
[1755263428543,15.92692337,193.37,193.36,0.03]
[1755263428742,0.65,193.37,193.36,0.03]
[1755263428977,37.9,193.42,193.36,16.66692337]
[1755263429179,15.16621557,193.46,193.37,0.71]
[1755263429180,0.06,193.46,193.37,0.71]
[1755263429480,15.92692337,193.44,193.38,15.92692337]
[1755263429642,15.92692337,193.44,193.36,0.03]
[1755263429842,15.92692337,193.42,193.36,0.03]
[1755263430042,53.86692337,193.41,193.36,0.03]
[1755263430281,0.65,193.4,193.36,0.03]
[1755263430452,37.94,193.41,193.36,16.66692337]
[1755263430651,0.65,193.4,193.36,0.03]
[1755263430853,37.94,193.41,193.36,0.03]
[1755263431167,37.94,193.41,193.36,15.95692337]
[1755263431360,16.57692337,193.4,193.36,0.03]
[1755263431559,15.92692337,193.39,193.36,0.03]
[1755263431750,15.92692337,193.38,193.36,0.03]
[1755263432078,15.92692337,193.37,193.36,0.03]
[1755263432249,0.65,193.37,193.36,0.03]
[1755263432656,23.01448293,193.39,193.36,0.03]
[1755263432873,0.65,193.4,193.36,0.03]
[1755263433185,0.65,193.38,193.36,0.03]
[1755263433651,37.94,193.41,193.36,23.04448293]
[1755263433980,0.06,193.42,193.4,23.01448293]
[1755263434186,0.06,193.42,193.41,23.72448293]
[1755263434792,0.06,193.42,193.41,28.8948464]
[1755263434942,1e-08,193.44,193.43,49.01448293]
[1755263435349,1e-08,193.44,193.43,49.72448293]
[1755263435991,1e-08,193.44,193.43,49.01448293]
[1755263436150,1e-08,193.44,193.41,5.17036347]
[1755263436151,1e-08,193.44,193.41,28.1848464]
[1755263436659,1e-08,193.44,193.43,23.01448293]
[1755263436872,1e-08,193.44,193.43,5.16982887]
[1755263437064,1e-08,193.44,193.43,28.1843118]
[1755263437279,0.65000001,193.44,193.42,28.18451296]
[1755263437460,0.65000001,193.44,193.42,23.01448293]
[1755263437658,1e-08,193.44,193.42,23.01448293]
[1755263437872,1e-08,193.44,193.43,23.01448293]
[1755263438074,1e-08,193.44,193.42,23.01448293]
[1755263438868,1e-08,193.44,193.42,28.18446095]
[1755263439984,0.65,193.43,193.4,23.01448293]
[1755263440357,1e-08,193.44,193.42,23.01448293]
[1755263441057,0.65,193.43,193.36,0.03]
[1755263441358,0.65,193.43,193.37,28.18591593]
[1755263441561,0.65,193.43,193.36,0.03]
[1755263441562,23.66448293,193.43,193.36,5.20164472]
[1755263441763,61.66448293,193.43,193.36,28.21612765]
[1755263442662,61.66448293,193.43,193.36,5.20164472]
[1755263442860,66.83445951,193.43,193.36,28.21612765]
[1755263443386,23.01448293,193.41,193.36,0.03]
[1755263444056,0.65,193.4,193.36,0.03]
[1755263444459,0.65,193.39,193.36,0.03]
[1755263444981,15.75621557,193.42,193.36,0.03]
[1755263445195,38.7806985,193.41,193.36,0.03]
[1755263445485,0.66,193.39,193.36,0.03]
[1755263445983,0.66,193.38,193.36,0.03]
[1755263446787,23.01448293,193.4,193.36,0.03]
[1755263446957,37.94,193.4,193.37,23.01448293]
[1755263447471,37.94,193.4,193.36,23.04448293]
[1755263447871,38.6,193.4,193.36,23.04448293]
[1755263448059,38.6,193.4,193.37,5.171433]
[1755263448407,0.66,193.39,193.36,0.03]
[1755263449389,0.66,193.38,193.36,0.03]
[1755263449806,0.66,193.37,193.36,0.03]
[1755263449984,23.67448293,193.37,193.36,0.03]
[1755263450392,23.01448293,193.38,193.36,0.03]
[1755263450697,23.01448293,193.39,193.36,0.03]
[1755263450899,37.94,193.4,193.36,0.03]
[1755263451076,0.66000001,193.44,193.37,23.01448293]
[1755263451276,37.92,193.43,193.39,23.01448293]
[1755263451481,23.67448293,193.42,193.36,0.03]
[1755263451688,23.01448293,193.41,193.36,0.03]
[1755263451977,23.67448293,193.42,193.36,23.04448293]
[1755263452177,23.67448293,193.42,193.36,0.03]
[1755263452178,23.01448293,193.39,193.36,0.03]
[1755263452400,60.93448293,193.39,193.36,0.03]
[1755263452696,0.66,193.38,193.36,0.03]
[1755263453271,37.92,193.39,193.36,0.03]
[1755263454478,38.58,193.39,193.36,0.03]
[1755263455092,0.66,193.38,193.36,0.03]
[1755263456711,37.92,193.39,193.36,0.03]
[1755263458012,131.9,193.38,193.36,0.03]
[1755263459231,0.66,193.37,193.36,0.03]
[1755263460518,37.92,193.39,193.36,0.03]
[1755263460733,12.98279234,193.46,193.38,15.91659489]
[1755263460734,0.66,193.43,193.38,15.91659489]
[1755263461031,37.86,193.45,193.42,15.91659489]
[1755263461230,37.86,193.45,193.41,15.91659489]
[1755263461418,37.86,193.45,193.42,15.91659489]
[1755263461615,0.06,193.46,193.43,15.91659489]
[1755263461817,37.94,193.46,193.42,21.08656322]
[1755263462622,37.94,193.46,193.43,15.91659489]
[1755263462834,37.94,193.46,193.37,16.252372]
[1755263462835,15.9165949,193.44,193.37,16.252372]
[1755263463035,15.9165949,193.44,193.36,0.03]
[1755263463036,15.91659489,193.41,193.36,0.03]
[1755263463248,37.88,193.42,193.36,0.03]
[1755263463474,15.91659489,193.4,193.36,0.03]
[1755263463838,0.66,193.39,193.36,0.03]
[1755263464144,5.83093308,193.39,193.36,0.03]
[1755263464334,0.66,193.39,193.36,0.03]
[1755263464523,38.54,193.38,193.36,0.03]
[1755263464933,37.88,193.38,193.36,0.03]
[1755263465129,0.66,193.37,193.36,0.03]
[1755263465338,37.88,193.38,193.36,0.03]
[1755263465936,16.57659489,193.37,193.36,0.03]
[1755263466339,0.66,193.37,193.36,0.03]
[1755263466654,31.68281046,193.37,193.34,0.03]
[1755263466856,15.91659489,193.35,193.34,0.03]
[1755263467021,53.81659489,193.35,193.34,0.03]
[1755263467226,57.14121723,193.35,193.34,0.03]
[1755263467425,73.05781212,193.35,193.34,0.03]
[1755263468152,78.22978005,193.35,193.34,0.03]
[1755263468730,37.88,193.35,193.34,0.03]
[1755263469342,54.45659489,193.35,193.34,0.03]
[1755263469541,73.03503029,193.35,193.34,0.03]
[1755263469956,15.10621557,193.34,193.32,0.03]
[1755263470153,15.91659489,193.33,193.32,0.03]
[1755263470324,0.66,193.33,193.32,0.03]
[1755263470647,37.9,193.33,193.32,0.03]
[1755263471060,54.47659489,193.33,193.32,0.03]
[1755263471733,69.58281046,193.33,193.32,0.03]
[1755263472128,74.75531343,193.33,193.32,0.03]
[1755263473643,15.546861,193.39,193.32,0.03]
[1755263473644,15.91659489,193.36,193.32,0.03]
[1755263473846,37.92,193.36,193.34,15.91659489]
[1755263474042,37.92,193.38,193.35,16.63659489]
[1755263474856,31.82985852,193.43,193.32,0.03]
[1755263474857,16.57659489,193.43,193.37,15.91659489]
[1755263475048,37.92,193.42,193.39,15.91659489]
[1755263475231,1e-08,193.44,193.41,15.91659489]
[1755263475437,1e-08,193.44,193.43,15.91659489]
[1755263475648,1e-08,193.44,193.43,5.16982887]
[1755263475940,0.06,193.49,193.45,26.0]
[1755263476142,0.06,193.49,193.47,15.91659489]
[1755263476339,0.06,193.49,193.47,16.43347089]
[1755263476543,0.06,193.49,193.48,16.61659489]
[1755263476739,0.06,193.49,193.48,24.87240606]
[1755263477341,0.06,193.49,193.46,26.0]
[1755263477538,0.06,193.49,193.45,24.87240606]
[1755263477870,0.06,193.49,193.46,24.17240606]
[1755263478027,0.06,193.49,193.45,24.87240606]
[1755263478227,24.17240606,193.47,193.42,2.070554]
[1755263478458,38.67,193.46,193.37,29.34383906]
[1755263478639,24.17240606,193.43,193.37,29.34383906]
[1755263478848,0.69,193.45,193.39,26.0]
[1755263479040,24.17240606,193.44,193.39,26.0]
[1755263479233,24.17240606,193.42,193.36,0.7]
[1755263479465,62.19240606,193.42,193.35,24.17240606]
[1755263479763,62.19240606,193.42,193.35,50.17240606]
[1755263480069,24.17240606,193.41,193.35,24.17240606]
[1755263481140,62.19240606,193.42,193.36,24.17240606]
[1755263481342,38.02,193.42,193.37,24.17240606]
[1755263481742,38.02,193.42,193.38,5.87116558]
[1755263482874,38.02,193.42,193.39,24.87240606]
[1755263483169,38.02,193.42,193.4,24.17240606]
[1755263483549,38.02,193.42,193.38,5.87116558]
[1755263483750,38.02,193.42,193.4,24.17240606]
[1755263483952,38.02,193.42,193.41,24.17240606]
[1755263484167,24.86240606,193.47,193.41,0.7]
[1755263484168,37.96,193.46,193.41,0.7]
[1755263484358,37.96,193.46,193.41,24.87240606]
[1755263484670,38.65,193.46,193.41,24.17240606]
[1755263484864,24.17240606,193.44,193.38,5.17116558]
[1755263485068,0.69,193.45,193.38,5.17116558]
[1755263485272,24.17240606,193.42,193.36,31.17147898]
[1755263485442,62.11240606,193.42,193.36,55.34388504]
[1755263485646,37.94,193.42,193.4,24.17240606]
[1755263486047,37.94,193.42,193.38,5.17116558]
[1755263486371,37.94,193.42,193.4,24.17240606]
[1755263486587,37.94,193.42,193.37,29.34380583]
[1755263486746,38.63,193.42,193.37,29.34380583]
[1755263486950,37.94,193.42,193.38,24.17240606]
[1755263487165,37.94,193.42,193.39,24.17240606]
[1755263487370,37.94,193.42,193.4,24.17240606]
[1755263488271,37.94,193.42,193.39,24.17240606]
[1755263488485,38.63,193.42,193.38,5.17112171]
[1755263488676,37.94,193.42,193.38,29.34352777]
[1755263489946,38.63,193.42,193.38,5.17112171]
[1755263490253,37.94,193.42,193.37,55.34382406]
[1755263490456,38.63,193.42,193.37,55.34382406]
[1755263490953,0.69,193.41,193.36,50.20240606]
[1755263491578,0.69,193.41,193.36,55.37408706]
[1755263491780,24.86240606,193.41,193.36,26.03]
[1755263491988,24.86240606,193.4,193.36,0.03]
[1755263492150,37.88,193.39,193.36,0.03]
[1755263492350,37.88,193.39,193.36,24.20240606]
[1755263492973,37.88,193.39,193.36,0.03]
[1755263493782,37.88,193.39,193.36,24.20240606]
[1755263493957,37.88,193.39,193.36,30.0738926]
[1755263494283,37.88,193.39,193.36,5.20148654]
[1755263494455,37.88,193.39,193.36,29.3738926]
[1755263495985,169.76,193.41,193.38,29.34357164]
[1755263496181,169.76,193.41,193.37,5.17138588]
[1755263496388,0.69,193.4,193.37,5.17138588]
[1755263496686,169.76,193.41,193.37,21.08350745]
[1755263496866,0.69,193.43,193.39,15.91212157]
[1755263497062,0.69,193.42,193.37,5.17138588]
[1755263497280,0.69,193.41,193.36,21.11380335]
[1755263497466,38.51,193.4,193.36,21.11380335]
[1755263497986,0.69,193.39,193.36,21.11380335]
[1755263498359,37.82,193.4,193.36,0.03]
[1755263498763,38.51,193.4,193.36,15.94212157]
[1755263499187,38.51,193.4,193.36,0.03]
[1755263499395,37.82,193.4,193.36,15.94212157]
[1755263499692,37.82,193.44,193.39,15.91212157]
[1755263499865,37.84,193.45,193.42,15.91212157]
[1755263500263,0.69,193.44,193.38,26.0]
[1755263500490,0.69,193.44,193.37,0.7]
[1755263500491,15.91212157,193.42,193.37,41.91212157]
[1755263500687,16.60212157,193.41,193.36,0.03]
[1755263500895,15.91212157,193.4,193.36,0.03]
[1755263501061,37.84,193.39,193.36,0.03]
[1755263501260,38.53,193.39,193.36,0.03]
[1755263501664,0.69,193.38,193.36,0.03]
[1755263501885,16.60212157,193.38,193.36,0.03]
[1755263502093,0.69,193.37,193.36,0.03]
[1755263502373,16.60212157,193.37,193.36,0.03]
[1755263503059,5.861433,193.37,193.36,0.03]
[1755263503495,0.69,193.37,193.36,0.03]
[1755263503663,0.69,193.4,193.36,0.03]
[1755263503864,0.69,193.37,193.36,0.03]
[1755263504216,38.53,193.37,193.36,0.03]
[1755263505270,37.84,193.37,193.36,0.03]
[1755263505474,5.16876001,193.47,193.36,0.03]
[1755263505680,0.66,193.41,193.36,0.03]
[1755263505876,37.84,193.4,193.36,0.03]
[1755263506086,37.84,193.4,193.37,15.91212157]
[1755263506394,37.84,193.42,193.39,15.91212157]
[1755263506571,37.86,193.43,193.41,15.91212157]
[1755263506971,37.86,193.43,193.4,5.17063081]
[1755263507377,0.66,193.42,193.39,5.17085468]
[1755263507594,0.66,193.42,193.36,16.60212157]
[1755263507891,15.91212157,193.42,193.36,16.60212157]
[1755263508092,15.91212157,193.42,193.37,5.17140862]
[1755263508299,0.66,193.42,193.37,21.08353019]
[1755263508515,16.57212157,193.42,193.37,5.17140862]
[1755263508795,0.66,193.44,193.37,15.91212157]
[1755263509011,37.84,193.43,193.4,15.91212157]
[1755263509206,131.9,193.45,193.42,15.91212157]
[1755263509370,131.9,193.45,193.39,26.0]
[1755263509570,131.9,193.45,193.4,0.66]
[1755263509779,131.9,193.45,193.42,15.91212157]
[1755263510098,131.9,193.45,193.43,15.91212157]
[1755263510399,0.06,193.48,193.39,26.0]
[1755263510400,0.06,193.48,193.44,16.57212157]
[1755263510600,0.06,193.48,193.47,15.91212157]
[1755263511101,0.06,193.48,193.47,16.57212157]
[1755263511298,0.06,193.48,193.47,26.0]
[1755263511507,0.06,193.48,193.45,21.08141596]
[1755263511798,0.72,193.48,193.44,5.16951916]
[1755263511982,0.06,193.48,193.44,5.16951916]
[1755263512299,0.66,193.47,193.43,21.08190364]
[1755263512508,0.66,193.47,193.42,5.17009616]
[1755263512678,0.66,193.46,193.42,21.08221773]
[1755263512998,0.66,193.46,193.42,5.17009616]
[1755263513190,0.66,193.46,193.42,21.08221773]
[1755263513614,0.66,193.45,193.41,26.0]
[1755263513775,0.66,193.44,193.38,15.91212157]
[1755263514097,15.91212157,193.43,193.37,41.91212157]
[1755263514291,15.91212157,193.42,193.38,26.0]
[1755263514492,15.91212157,193.43,193.39,31.17070445]
[1755263514691,16.57212157,193.43,193.39,31.17070445]
[1755263515278,15.91212157,193.44,193.39,31.17070445]
[1755263515476,16.57212157,193.44,193.39,31.17070445]
[1755263516574,16.57212157,193.43,193.37,21.08335868]
[1755263516781,0.66,193.43,193.38,15.91212157]
[1755263516974,15.91212157,193.44,193.38,16.57212157]